[Event "13 Open de Quenza"]
[Site "Quenza, France"]
[Date "2024.07.07"]
[Round "6.11"]
[White "Roubert, Emile"]
[Black "Anwesh, Upadhyaya"]
[Result "1/2-1/2"]
[TimeControl "5min+3s/move"]
[WhiteElo "1985"]
[BlackElo "2363"]

1. e4 {[%clk 00:05:03]} e5 {[%clk 00:05:03]} {[%emt 00:00:04]} 2. Nf3 {[%clk
00:05:03]} {[%emt 00:00:02]} Nc6 {[%clk 00:05:03]} {[%emt 00:00:02]} 3. Bb5
{[%clk 00:05:03]} {[%emt 00:00:01]} a6 {[%clk 00:05:03]} {[%emt 00:00:03]} 4.
Ba4 {[%clk 00:05:03]} Nf6 {[%clk 00:05:03]} {[%emt 00:00:03]} 5. O-O {[%clk
00:05:03]} {[%emt 00:00:02]} b5 {[%clk 00:05:03]} {[%emt 00:00:02]} 6. Bb3
{[%clk 00:05:03]} Be7 {[%clk 00:05:03]} {[%emt 00:00:01]} 7. Re1 {[%clk
00:05:00]} {[%emt 00:00:06]} O-O {[%clk 00:05:03]} {[%emt 00:00:03]} 8. a4
{[%clk 00:05:00]} {[%emt 00:00:03]} Bb7 {[%clk 00:05:03]} {[%emt 00:00:01]} 9.
d3 {[%clk 00:04:55]} {[%emt 00:00:08]} d6 {[%clk 00:05:03]} {[%emt 00:00:02]}
10. Nc3 {[%clk 00:04:31]} {[%emt 00:00:26]} b4 {[%clk 00:05:03]} {[%emt
00:00:03]} 11. Ne2 {[%clk 00:04:19]} {[%emt 00:00:15]} Nd7 {[%clk 00:04:39]}
{[%emt 00:00:28]} 12. Ng3 {[%clk 00:04:12]} {[%emt 00:00:09]} Nc5 {[%clk
00:04:39]} {[%emt 00:00:02]} 13. Bd5 {[%clk 00:04:12]} Rb8 {[%clk 00:04:22]}
{[%emt 00:00:21]} 14. b3 {[%clk 00:04:09]} {[%emt 00:00:06]} Ne6 {[%clk
00:04:03]} {[%emt 00:00:22]} 15. Nf5 {[%clk 00:04:00]} {[%emt 00:00:11]} Bf6
{[%clk 00:04:03]} {[%emt 00:00:02]} 16. Bb2 {[%clk 00:03:42]} {[%emt 00:00:21]}
Re8 {[%clk 00:03:53]} {[%emt 00:00:12]} 17. g3 {[%clk 00:03:37]} {[%emt
00:00:08]} Ne7 {[%clk 00:02:42]} {[%emt 00:01:14]} 18. Bxb7 {[%clk 00:03:25]}
{[%emt 00:00:15]} Rxb7 {[%clk 00:02:42]} {[%emt 00:00:02]} 19. Nxe7+ {[%clk
00:03:25]} {[%emt 00:00:03]} Qxe7 {[%clk 00:02:39]} {[%emt 00:00:06]} 20. d4
{[%clk 00:03:06]} {[%emt 00:00:21]} Nxd4 {[%clk 00:02:35]} {[%emt 00:00:07]} 21.
Nxd4 {[%clk 00:03:06]} {[%emt 00:00:03]} exd4 {[%clk 00:02:35]} {[%emt
00:00:01]} 22. Bxd4 {[%clk 00:03:06]} {[%emt 00:00:02]} Bxd4 {[%clk 00:02:21]}
{[%emt 00:00:18]} 23. Qxd4 {[%clk 00:03:06]} {[%emt 00:00:01]} Qe5 {[%clk
00:02:21]} {[%emt 00:00:02]} 24. Rad1 {[%clk 00:03:00]} {[%emt 00:00:08]} g6
{[%clk 00:02:10]} {[%emt 00:00:13]} 25. Qc4 {[%clk 00:02:51]} {[%emt 00:00:13]}
Re7 {[%clk 00:01:52]} {[%emt 00:00:21]} 26. Qxa6 {[%clk 00:02:45]} {[%emt
00:00:08]} Rb6 {[%clk 00:01:51]} {[%emt 00:00:04]} 27. Qa8+ {[%clk 00:02:44]}
{[%emt 00:00:04]} Kg7 {[%clk 00:01:51]} {[%emt 00:00:02]} 28. Qd5 {[%clk
00:02:44]} {[%emt 00:00:01]} Qf6 {[%clk 00:01:26]} {[%emt 00:00:28]} 29. a5
{[%clk 00:02:38]} {[%emt 00:00:09]} Rb8 {[%clk 00:01:18]} {[%emt 00:00:12]} 30.
a6 {[%clk 00:02:25]} {[%emt 00:00:16]} Ree8 {[%clk 00:01:18]} {[%emt 00:00:01]}
31. a7 {[%clk 00:02:18]} {[%emt 00:00:10]} Ra8 {[%clk 00:01:18]} 32. Ra1 {[%clk
00:02:18]} {[%emt 00:00:02]} Qc3 {[%clk 00:01:15]} {[%emt 00:00:06]} 33. Qd3
{[%clk 00:01:49]} {[%emt 00:00:32]} Qc5 {[%clk 00:01:07]} {[%emt 00:00:12]} 34.
Qe3 {[%clk 00:01:47]} {[%emt 00:00:05]} Re5 {[%clk 00:00:47]} {[%emt 00:00:23]}
35. Qxc5 {[%clk 00:01:30]} {[%emt 00:00:20]} Rxc5 {[%clk 00:00:47]} 36. Re2
{[%clk 00:01:30]} Kf6 {[%clk 00:00:47]} 37. f4 {[%clk 00:01:30]} Ke6 {[%clk
00:00:47]} {[%emt 00:00:01]} 38. Ra4 {[%clk 00:01:26]} {[%emt 00:00:07]} Rb5
{[%clk 00:00:47]} {[%emt 00:00:03]} 39. Re1 {[%clk 00:01:21]} {[%emt 00:00:08]}
Rc5 {[%clk 00:00:32]} {[%emt 00:00:18]} 40. Rea1 {[%clk 00:01:10]} {[%emt
00:00:14]} Rb5 {[%clk 00:00:29]} {[%emt 00:00:07]} 41. Kf2 {[%clk 00:01:10]}
{[%emt 00:00:01]} Kd7 {[%clk 00:00:29]} {[%emt 00:00:02]} 42. Ke3 {[%clk
00:01:10]} {[%emt 00:00:01]} Kc8 {[%clk 00:00:27]} {[%emt 00:00:05]} 43. Kd4
{[%clk 00:01:08]} {[%emt 00:00:04]} Kd7 {[%clk 00:00:14]} {[%emt 00:00:16]} 44.
R1a2 {[%clk 00:01:08]} {[%emt 00:00:03]} c5+ {[%clk 00:00:14]} {[%emt
00:00:03]} 45. Kc4 {[%clk 00:01:08]} {[%emt 00:00:03]} Rb7 {[%clk 00:00:14]}
{[%emt 00:00:02]} 46. Ra6 {[%clk 00:01:08]} {[%emt 00:00:02]} Ke6 {[%clk
00:00:09]} {[%emt 00:00:08]} 47. Ra1 {[%clk 00:01:07]} {[%emt 00:00:04]} f6
{[%clk 00:00:09]} {[%emt 00:00:03]} 48. Rd1 {[%clk 00:01:07]} {[%emt 00:00:02]}
Raxa7 {[%clk 00:00:08]} {[%emt 00:00:04]} 49. Rdxd6+ {[%clk 00:01:07]} {[%emt
00:00:01]} Ke7 {[%clk 00:00:08]} 50. Re6+ {[%clk 00:01:07]} {[%emt 00:00:04]}
Kd7 {[%clk 00:00:08]} {[%emt 00:00:01]} 51. Rxa7 {[%clk 00:01:07]} {[%emt
00:00:03]} Rxa7 {[%clk 00:00:08]} 52. Rxf6 {[%clk 00:01:07]} Ra2 {[%clk
00:00:07]} {[%emt 00:00:04]} 53. Kxc5 {[%clk 00:01:05]} {[%emt 00:00:04]} Rxc2+
{[%clk 00:00:07]} {[%emt 00:00:02]} 54. Kxb4 {[%clk 00:01:05]} {[%emt
00:00:01]} Rxh2 {[%clk 00:00:07]} {[%emt 00:00:01]} 55. Kc5 {[%clk 00:00:59]}
{[%emt 00:00:09]} Rh3 {[%clk 00:00:07]} 56. b4 {[%clk 00:00:59]} {[%emt
00:00:02]} Ke7 {[%clk 00:00:07]} 57. Ra6 {[%clk 00:00:59]} {[%emt 00:00:02]}
Rxg3 {[%clk 00:00:07]} {[%emt 00:00:02]} 58. Ra7+ {[%clk 00:00:59]} Ke6 {[%clk
00:00:07]} 59. Rxh7 {[%clk 00:00:59]} {[%emt 00:00:02]} Rg4 {[%clk 00:00:07]}
60. b5 {[%clk 00:00:55]} {[%emt 00:00:08]} Rxf4 {[%clk 00:00:07]} {[%emt
00:00:01]} 61. Kd4 {[%clk 00:00:55]} Rf1 {[%clk 00:00:06]} {[%emt 00:00:05]} 62.
b6 {[%clk 00:00:55]} {[%emt 00:00:01]} Rb1 {[%clk 00:00:06]} 63. b7 {[%clk
00:00:55]} Kd6 {[%clk 00:00:06]} {[%emt 00:00:02]} 64. Rg7 {[%clk 00:00:54]}
{[%emt 00:00:04]} Kc6 {[%clk 00:00:06]} {[%emt 00:00:02]} 65. e5 {[%clk
00:00:48]} {[%emt 00:00:09]} Rxb7 {[%clk 00:00:06]} {[%emt 00:00:02]} 66. Rxb7
{[%clk 00:00:47]} {[%emt 00:00:03]} Kxb7 {[%clk 00:00:06]} 67. Kd5 {[%clk
00:00:47]} {[%emt 00:00:02]} Kc7 {[%clk 00:00:05]} {[%emt 00:00:04]} 68. Ke6
{[%clk 00:00:47]} {[%emt 00:00:02]} g5 {[%clk 00:00:05]} 69. Kf5 {[%clk
00:00:43]} {[%emt 00:00:08]} Kd7 {[%clk 00:00:05]} 70. Kxg5 {[%clk 00:00:43]}
{[%emt 00:00:04]} Ke6 {[%clk 00:00:05]} 71. Kf4 {[%clk 00:00:43]} Ke7 {[%clk
00:00:05]} 72. Kf5 {[%clk 00:00:43]} {[%emt 00:00:02]} Kf7 {[%clk 00:00:05]} 73.
e6+ {[%clk 00:00:43]} {[%emt 00:00:01]} Ke7 {[%clk 00:00:05]} 74. Ke5 {[%emt
00:00:01]} Ke8 75. Kd6 {[%clk 00:00:43]} {[%emt 00:00:01]} Kd8 {[%clk
00:00:05]} 76. e7+ {[%clk 00:00:43]} {[%emt 00:00:01]} Ke8 {[%clk 00:00:05]} 77.
Ke6 1/2-1/2

[Event "13 Open de Quenza"]
[Site "Quenza, France"]
[Date "2024.07.07"]
[Round "6.12"]
[White "Sabiani, Chjara"]
[Black "Tomasi, Albert"]
[Result "1-0"]
[TimeControl "5min+3s/move"]
[WhiteElo "1841"]
[BlackElo "2295"]

1. d4 {[%clk 00:05:03]} {[%emt 00:07:19]} Nf6 {[%clk 00:05:03]} {[%emt
00:00:03]} 2. c4 {[%clk 00:05:03]} {[%emt 00:00:02]} c5 {[%clk 00:05:01]}
{[%emt 00:00:05]} 3. d5 {[%clk 00:05:03]} {[%emt 00:00:02]} b5 {[%clk
00:05:01]} {[%emt 00:00:01]} 4. Qc2 {[%clk 00:05:03]} {[%emt 00:00:02]} bxc4
{[%clk 00:05:01]} {[%emt 00:00:03]} 5. e4 {[%clk 00:05:03]} {[%emt 00:00:01]}
Ba6 {[%clk 00:05:01]} {[%emt 00:00:03]} 6. Nd2 {[%clk 00:04:31]} {[%emt
00:00:35]} c3 {[%clk 00:05:01]} {[%emt 00:00:03]} 7. bxc3 {[%clk 00:04:23]}
{[%emt 00:00:11]} Bxf1 {[%clk 00:05:01]} {[%emt 00:00:03]} 8. Nxf1 {[%clk
00:04:19]} {[%emt 00:00:07]} g6 {[%clk 00:04:58]} {[%emt 00:00:06]} 9. Nf3
{[%clk 00:04:06]} {[%emt 00:00:16]} Bg7 {[%clk 00:04:58]} {[%emt 00:00:02]} 10.
Bb2 {[%clk 00:03:46]} {[%emt 00:00:23]} d6 {[%clk 00:04:36]} {[%emt 00:00:25]}
11. Ne3 {[%clk 00:03:44]} {[%emt 00:00:05]} Nbd7 {[%clk 00:04:32]} {[%emt
00:00:07]} 12. h3 {[%clk 00:03:44]} Rb8 {[%clk 00:04:30]} {[%emt 00:00:06]} 13.
O-O {[%clk 00:03:40]} {[%emt 00:00:07]} Nxe4 {[%clk 00:03:53]} {[%emt
00:00:40]} 14. Qxe4 {[%clk 00:03:20]} {[%emt 00:00:23]} Rxb2 {[%clk 00:03:53]}
{[%emt 00:00:03]} 15. Nc4 {[%clk 00:02:57]} {[%emt 00:00:25]} Nf6 {[%clk
00:03:53]} {[%emt 00:00:02]} 16. Qd3 {[%clk 00:02:49]} {[%emt 00:00:11]} Rb8
{[%clk 00:03:40]} {[%emt 00:00:16]} 17. Rab1 {[%clk 00:02:48]} {[%emt
00:00:04]} O-O {[%clk 00:03:36]} {[%emt 00:00:06]} 18. Rxb8 {[%clk 00:02:48]}
{[%emt 00:00:02]} Qxb8 {[%clk 00:03:36]} {[%emt 00:00:02]} 19. Na5 {[%clk
00:02:45]} {[%emt 00:00:06]} Qb2 {[%clk 00:01:51]} {[%emt 00:01:48]} 20. Nc6
{[%clk 00:02:34]} {[%emt 00:00:14]} Qxa2 {[%clk 00:00:57]} {[%emt 00:00:57]} 21.
Nxe7+ {[%clk 00:02:34]} {[%emt 00:00:02]} Kh8 {[%clk 00:00:57]} 22. Rb1 {[%clk
00:02:13]} {[%emt 00:00:25]} a5 {[%clk 00:00:49]} {[%emt 00:00:12]} 23. Ng5
{[%clk 00:01:49]} {[%emt 00:00:27]} a4 {[%clk 00:00:29]} {[%emt 00:00:23]} 24.
Rb8 {[%emt 00:00:18]} h6 {[%clk 00:00:07]} {[%emt 00:00:23]} 25. Nxf7+ {[%clk
00:01:27]} {[%emt 00:00:11]} Kh7 {[%clk 00:00:07]} {[%emt 00:00:02]} 26. Qxg6#
{[%clk 00:01:27]} {[%emt 00:00:02]} 1-0

[Event "13 Open de Quenza"]
[Site "Quenza, France"]
[Date "2024.07.07"]
[Round "7.1"]
[White "Anand, Viswanathan"]
[Black "Fressinet, Laurent"]
[Result "1-0"]
[TimeControl "5min+3s/move"]
[WhiteElo "2751"]
[BlackElo "2625"]

1. e4 {[%clk 00:05:03]} {[%emt 00:00:01]} e5 {[%clk 00:05:03]} {[%emt
00:00:01]} 2. Nf3 {[%clk 00:05:03]} {[%emt 00:00:01]} Nc6 {[%clk 00:05:03]}
{[%emt 00:00:01]} 3. Bb5 {[%clk 00:05:03]} {[%emt 00:00:01]} Nf6 {[%clk
00:05:03]} 4. d3 {[%clk 00:05:03]} {[%emt 00:00:01]} Bc5 {[%clk 00:05:03]}
{[%emt 00:00:01]} 5. O-O {[%clk 00:05:02]} {[%emt 00:00:04]} d6 {[%clk
00:04:54]} {[%emt 00:00:13]} 6. Nc3 {[%clk 00:04:57]} {[%emt 00:00:08]} O-O
{[%clk 00:04:42]} {[%emt 00:00:15]} 7. Na4 {[%clk 00:04:57]} {[%emt 00:00:02]}
Nd4 {[%clk 00:04:30]} {[%emt 00:00:15]} 8. Nxc5 {[%clk 00:04:50]} {[%emt
00:00:09]} Nxb5 {[%clk 00:04:30]} {[%emt 00:00:04]} 9. a4 {[%clk 00:04:50]}
{[%emt 00:00:02]} Nd4 {[%clk 00:04:04]} {[%emt 00:00:29]} 10. Nxd4 {[%clk
00:04:50]} {[%emt 00:00:02]} dxc5 {[%clk 00:04:04]} {[%emt 00:00:04]} 11. Nb5
{[%clk 00:04:50]} {[%emt 00:00:02]} a6 {[%clk 00:03:25]} {[%emt 00:00:41]} 12.
Nc3 {[%clk 00:04:50]} Be6 {[%clk 00:03:23]} {[%emt 00:00:06]} 13. f4 {[%clk
00:04:47]} {[%emt 00:00:06]} exf4 {[%clk 00:02:52]} {[%emt 00:00:34]} 14. Bxf4
{[%clk 00:04:47]} {[%emt 00:00:01]} Nd7 {[%clk 00:02:45]} {[%emt 00:00:10]} 15.
Qh5 {[%clk 00:04:21]} {[%emt 00:00:29]} f6 {[%clk 00:02:45]} {[%emt 00:00:02]}
16. Nd5 {[%clk 00:04:17]} {[%emt 00:00:07]} g6 {[%clk 00:02:27]} {[%emt
00:00:21]} 17. Qf3 {[%clk 00:04:11]} {[%emt 00:00:08]} Bxd5 {[%clk 00:02:13]}
{[%emt 00:00:19]} 18. exd5 {[%clk 00:04:11]} {[%emt 00:00:01]} Ne5 {[%clk
00:02:13]} 19. Qe4 {[%clk 00:04:05]} {[%emt 00:00:09]} Qd6 {[%clk 00:01:44]}
{[%emt 00:00:32]} 20. c3 {[%clk 00:03:57]} {[%emt 00:00:11]} Rae8 {[%clk
00:01:43]} {[%emt 00:00:04]} 21. d4 {[%clk 00:03:41]} {[%emt 00:00:18]} cxd4
{[%clk 00:01:43]} {[%emt 00:00:01]} 22. cxd4 {[%clk 00:03:41]} Qb4 {[%clk
00:01:43]} {[%emt 00:00:01]} 23. Bh6 {[%clk 00:03:18]} {[%emt 00:00:25]} Rf7
{[%clk 00:01:26]} {[%emt 00:00:20]} 24. Qe3 {[%clk 00:03:17]} {[%emt 00:00:04]}
1-0

[Event "13 Open de Quenza"]
[Site "Quenza, France"]
[Date "2024.07.07"]
[Round "7.2"]
[White "Bellahcene, Bilel"]
[Black "Lagarde, Maxime"]
[Result "0-1"]
[TimeControl "5min+3s/move"]
[WhiteElo "2535"]
[BlackElo "2608"]

1. e4 {[%clk 00:05:03]} c5 {[%clk 00:05:03]} {[%emt 00:00:02]} 2. Nf3 {[%clk
00:05:03]} {[%emt 00:00:01]} e6 {[%clk 00:05:03]} 3. d4 {[%clk 00:05:03]}
{[%emt 00:00:01]} cxd4 {[%clk 00:05:03]} {[%emt 00:00:01]} 4. Nxd4 Nf6 5. Nc3
{[%clk 00:05:03]} {[%emt 00:00:02]} Nc6 {[%clk 00:05:03]} 6. Nxc6 {[%clk
00:04:45]} {[%emt 00:00:22]} bxc6 7. e5 Nd5 {[%clk 00:05:03]} 8. Ne4 {[%clk
00:04:45]} Qc7 {[%clk 00:05:03]} 9. f4 {[%clk 00:04:45]} Qb6 {[%clk 00:05:03]}
{[%emt 00:00:02]} 10. a3 {[%clk 00:04:45]} {[%emt 00:00:01]} a5 {[%clk
00:04:59]} {[%emt 00:00:07]} 11. c4 {[%clk 00:04:24]} {[%emt 00:00:24]} Ne3
{[%clk 00:04:59]} {[%emt 00:00:01]} 12. Qd3 {[%clk 00:04:24]} Nf5 {[%clk
00:04:59]} {[%emt 00:00:02]} 13. Bd2 {[%clk 00:03:37]} {[%emt 00:00:51]} Qxb2
{[%clk 00:04:43]} {[%emt 00:00:19]} 14. Bc3 {[%clk 00:03:37]} {[%emt 00:00:01]}
Qb6 {[%clk 00:04:42]} {[%emt 00:00:04]} 15. Be2 {[%clk 00:02:57]} {[%emt
00:00:44]} Ba6 {[%clk 00:04:01]} {[%emt 00:00:44]} 16. Rb1 {[%clk 00:01:36]}
{[%emt 00:01:24]} Qe3 {[%clk 00:03:39]} {[%emt 00:00:25]} 17. Bd2 {[%clk
00:01:17]} {[%emt 00:00:22]} Qxd3 18. Bxd3 {[%clk 00:01:17]} d5 {[%clk
00:03:12]} {[%emt 00:00:29]} 19. exd6 {[%clk 00:01:15]} {[%emt 00:00:05]} Nxd6
{[%clk 00:03:12]} 20. Nxd6+ {[%clk 00:01:01]} {[%emt 00:00:17]} Bxd6 {[%clk
00:03:12]} 21. Rf1 {[%clk 00:00:44]} {[%emt 00:00:21]} O-O {[%clk 00:02:53]}
{[%emt 00:00:23]} 22. a4 {[%clk 00:00:44]} Rfb8 {[%clk 00:02:41]} {[%emt
00:00:14]} 23. Ke2 {[%clk 00:00:44]} {[%emt 00:00:01]} Bb4 {[%clk 00:02:35]}
{[%emt 00:00:09]} 24. Be3 {[%clk 00:00:44]} Rd8 {[%clk 00:02:28]} {[%emt
00:00:10]} 25. Rbc1 {[%clk 00:00:42]} {[%emt 00:00:05]} f5 {[%clk 00:02:15]}
{[%emt 00:00:15]} 26. g4 {[%clk 00:00:42]} g6 {[%clk 00:02:15]} 27. Bb6 {[%clk
00:00:28]} {[%emt 00:00:17]} Rd7 {[%clk 00:02:13]} {[%emt 00:00:06]} 28. gxf5
{[%clk 00:00:17]} {[%emt 00:00:14]} exf5 {[%clk 00:02:13]} {[%emt 00:00:01]} 29.
Rfd1 {[%clk 00:00:17]} c5 {[%clk 00:02:03]} {[%emt 00:00:13]} 30. Bb1 {[%clk
00:00:15]} {[%emt 00:00:06]} Re8+ {[%clk 00:01:49]} {[%emt 00:00:17]} 31. Kf3
{[%clk 00:00:15]} {[%emt 00:00:02]} Rxd1 {[%clk 00:01:44]} {[%emt 00:00:08]} 32.
Rxd1 {[%clk 00:00:15]} Bxc4 {[%clk 00:01:44]} {[%emt 00:00:02]} 33. Rd7 {[%clk
00:00:13]} {[%emt 00:00:05]} Be6 {[%clk 00:01:37]} {[%emt 00:00:10]} 34. Rc7
{[%clk 00:00:13]} {[%emt 00:00:03]} Rc8 {[%clk 00:01:37]} {[%emt 00:00:01]} 35.
Re7 {[%clk 00:00:13]} {[%emt 00:00:02]} Bf7 {[%clk 00:01:36]} {[%emt 00:00:04]}
36. Bc2 {[%clk 00:00:10]} {[%emt 00:00:06]} c4 {[%clk 00:01:36]} {[%emt
00:00:03]} 37. Ra7 {[%clk 00:00:10]} Bd5+ {[%clk 00:01:29]} {[%emt 00:00:10]}
38. Ke2 {[%clk 00:00:08]} {[%emt 00:00:05]} Re8+ {[%clk 00:01:22]} {[%emt
00:00:09]} 39. Kf2 {[%clk 00:00:08]} {[%emt 00:00:02]} c3 {[%clk 00:01:13]}
{[%emt 00:00:12]} 40. Bd4 {[%clk 00:00:08]} {[%emt 00:00:01]} Re7 {[%clk
00:01:08]} {[%emt 00:00:08]} 41. Rxe7 {[%clk 00:00:07]} {[%emt 00:00:05]} Bxe7
{[%clk 00:01:08]} {[%emt 00:00:01]} 42. Bxc3 {[%clk 00:00:07]} Bc5+ {[%clk
00:01:08]} 43. Kg3 {[%clk 00:00:07]} Bb6 {[%clk 00:01:06]} {[%emt 00:00:05]} 44.
h4 {[%clk 00:00:07]} {[%emt 00:00:02]} h5 {[%clk 00:01:00]} {[%emt 00:00:10]}
45. Be5 {[%clk 00:00:07]} {[%emt 00:00:03]} Bd8 {[%clk 00:00:59]} {[%emt
00:00:03]} 46. Bd1 {[%clk 00:00:07]} {[%emt 00:00:02]} Kf7 {[%clk 00:00:59]}
{[%emt 00:00:01]} 47. Bc2 {[%clk 00:00:07]} {[%emt 00:00:02]} Ke6 {[%clk
00:00:59]} {[%emt 00:00:01]} 48. Bc3 {[%clk 00:00:07]} Ba2 {[%clk 00:00:57]}
{[%emt 00:00:04]} 49. Bd3 {[%clk 00:00:07]} {[%emt 00:00:03]} Kd5 {[%clk
00:00:57]} {[%emt 00:00:01]} 50. Bb5 {[%clk 00:00:07]} {[%emt 00:00:01]} Ke4
{[%clk 00:00:49]} {[%emt 00:00:10]} 51. Be8 {[%clk 00:00:07]} {[%emt 00:00:02]}
Bb3 {[%clk 00:00:49]} {[%emt 00:00:02]} 52. Bxg6 {[%clk 00:00:07]} {[%emt
00:00:03]} Bxa4 {[%clk 00:00:49]} {[%emt 00:00:01]} 53. Bxh5 {[%clk 00:00:07]}
Bc7 {[%clk 00:00:41]} {[%emt 00:00:11]} 54. Bf3+ {[%clk 00:00:07]} Ke3 {[%clk
00:00:33]} {[%emt 00:00:11]} 55. Be5 {[%clk 00:00:07]} {[%emt 00:00:03]} Bxe5
{[%clk 00:00:32]} {[%emt 00:00:04]} 56. fxe5 {[%clk 00:00:07]} f4 {[%clk
00:00:32]} {[%emt 00:00:01]} 57. Kg2 {[%clk 00:00:07]} {[%emt 00:00:02]} Kd4
{[%clk 00:00:26]} {[%emt 00:00:09]} 58. e6 {[%clk 00:00:06]} {[%emt 00:00:04]}
Ke5 {[%clk 00:00:26]} 59. h5 {[%clk 00:00:06]} {[%emt 00:00:02]} Kxe6 {[%clk
00:00:26]} {[%emt 00:00:03]} 60. Be4 {[%clk 00:00:06]} {[%emt 00:00:03]} Kf6
{[%clk 00:00:26]} {[%emt 00:00:03]} 61. Kf3 {[%clk 00:00:06]} Kg5 {[%clk
00:00:26]} 62. h6 {[%clk 00:00:06]} Bd1+ {[%clk 00:00:26]} 63. Kf2 {[%clk
00:00:06]} {[%emt 00:00:02]} Kxh6 {[%clk 00:00:26]} {[%emt 00:00:02]} 64. Ke1
{[%clk 00:00:06]} Bb3 {[%clk 00:00:26]} {[%emt 00:00:01]} 65. Kd2 {[%clk
00:00:06]} {[%emt 00:00:01]} Kg5 {[%clk 00:00:25]} {[%emt 00:00:03]} 66. Kc3
{[%clk 00:00:06]} Be6 {[%clk 00:00:25]} {[%emt 00:00:04]} 67. Kd4 {[%clk
00:00:06]} {[%emt 00:00:01]} a4 {[%clk 00:00:22]} {[%emt 00:00:06]} 68. Kc3
{[%clk 00:00:06]} a3 {[%clk 00:00:22]} 69. Kd4 {[%emt 00:00:06]} 0-1